fUST/lending_fUST_20260117
["ID","MTS","AMOUNT","RATE_DAILY","PERIOD"]
[402197165,1768588239112,-500.0,0.00015634,2]
[402197166,1768588239122,-500.0,0.00015634,2]
[402197167,1768588239133,-500.0,0.00015634,2]
[402197168,1768588239142,-500.0,0.00015634,2]
[402197169,1768588239151,-500.0,0.00015634,2]
[402197170,1768588239161,-500.0,0.00015634,2]
[402197171,1768588239171,-500.0,0.00015634,2]
[402197172,1768588239181,-500.0,0.00015634,2]
[402197173,1768588239191,-500.0,0.00015634,2]
[402197174,1768588239200,-500.0,0.00015634,2]
[402197175,1768588239209,-500.0,0.00015634,2]
[402197176,1768588239219,-500.0,0.00015634,2]
[402197177,1768588239228,-500.0,0.00015634,2]
[402197178,1768588239238,-500.0,0.00015634,2]
[402197179,1768588239247,-500.0,0.00015634,2]
[402197180,1768588239256,-500.0,0.00015634,2]
[402197181,1768588239266,-530.99694103,0.00015634,2]
[402197182,1768588239275,-500.0,0.00015634,2]
[402197183,1768588239284,-500.0,0.00015634,2]
[402197184,1768588239293,-500.0,0.00015634,2]
[402197185,1768588239303,-500.0,0.00015634,2]
[402197186,1768588239312,-500.0,0.00015634,2]
[402197187,1768588239321,-500.0,0.00015634,2]
[402197188,1768588239331,-500.0,0.00015634,2]
[402197189,1768588239340,-500.0,0.00015634,2]
[402197190,1768588239349,-500.0,0.00015634,2]
[402197191,1768588239358,-500.0,0.00015634,2]
[402197192,1768588239367,-500.0,0.00015634,2]
[402197193,1768588239376,-500.0,0.00015634,2]
[402197194,1768588239387,-500.0,0.00015634,2]
[402197195,1768588239396,-500.0,0.00015634,2]
[402197196,1768588239405,-500.0,0.00015634,2]
[402197197,1768588239415,-500.0,0.00015634,2]
[402197198,1768588239426,-500.0,0.00015634,2]
[402197199,1768588239436,-500.0,0.00015634,2]
[402197200,1768588239445,-500.0,0.00015634,2]
[402197201,1768588239454,-583.64227533,0.00015634,2]
[402197202,1768588239464,-500.0,0.00015634,2]
[402197203,1768588239473,-500.0,0.00015634,2]
[402197204,1768588239484,-182.56286617,0.00015634,2]
[402197205,1768588239493,-500.0,0.00015634,2]
[402197206,1768588239503,-500.0,0.00015634,2]
[402197207,1768588239512,-500.0,0.00015634,2]
[402197208,1768588239522,-500.0,0.00015634,2]
[402197209,1768588239531,-500.0,0.00015634,2]
[402197210,1768588239541,-500.0,0.00015634,2]
[402197211,1768588239550,-500.0,0.00015634,2]
[402197212,1768588239562,-500.0,0.00015634,2]
[402197213,1768588239572,-500.0,0.00015634,2]
[402197214,1768588239582,-500.0,0.00015634,2]
[402197215,1768588239592,-500.0,0.00015634,2]
[402197216,1768588239602,-500.0,0.00015634,2]
[402197217,1768588239611,-500.0,0.00015634,2]
[402197218,1768588239621,-500.0,0.00015634,2]
[402197219,1768588239634,-500.0,0.00015634,2]
[402197220,1768588239643,-500.0,0.00015634,2]
[402197221,1768588239652,-500.0,0.00015634,2]
[402197222,1768588239661,-500.0,0.00015634,2]
[402197223,1768588239670,-500.0,0.00015634,2]
[402197224,1768588239679,-500.0,0.00015634,2]
[402197225,1768588239689,-500.0,0.00015636,2]
[402197226,1768588239698,-500.0,0.00015636,2]
[402197227,1768588239707,-500.0,0.00015636,2]
[402197228,1768588239716,-500.0,0.00015636,2]
[402197229,1768588239726,-500.0,0.00015636,2]
[402197230,1768588239735,-500.0,0.00015636,2]
[402197231,1768588239744,-500.0,0.00015636,2]
[402197232,1768588239753,-500.0,0.00015636,2]
[402197233,1768588239761,-500.0,0.00015636,2]
[402197235,1768588239771,-500.0,0.00015636,2]
[402197236,1768588239779,-500.0,0.00015636,2]
[402197237,1768588239789,-500.0,0.00015636,2]
[402197238,1768588239798,-500.0,0.00015636,2]
[402197239,1768588239807,-500.0,0.00015636,2]
[402197240,1768588239815,-611.38007014,0.00015636,2]
[402197241,1768588239825,-1558.97,0.00015636,2]
[402197242,1768588239834,-1558.97,0.00015636,2]
[402197243,1768588239843,-1558.97,0.00015636,2]
[402197244,1768588239852,-1558.97,0.00015636,2]
[402197245,1768588239861,-1558.97,0.00015636,2]
[402197246,1768588239870,-1558.97,0.00015636,2]
[402197247,1768588239879,-1558.97,0.00015636,2]
[402197248,1768588239889,-1558.97,0.00015636,2]
[402197249,1768588239898,-1558.97,0.00015636,2]
[402197250,1768588239907,-1558.97,0.00015636,2]
[402197251,1768588239916,-1558.97,0.00015636,2]
[402197252,1768588239925,-1558.97,0.00015636,2]
[402197253,1768588239935,-1558.97,0.00015636,2]
[402197254,1768588239943,-1558.97,0.00015636,2]
[402197255,1768588239952,-1558.97,0.00015636,2]
[402197256,1768588239961,-1558.97,0.00015636,2]
[402197257,1768588239970,-1558.97,0.00015636,2]
[402197258,1768588239979,-1558.97,0.00015636,2]
[402197259,1768588239989,-1559.01309236,0.00015636,2]
[402197260,1768588239998,-281.34535215,0.00015785,2]
[402197261,1768588240008,-1881.06727141,0.00015851,2]
[402197262,1768588240017,-30476.27102619,0.0001599,2]
[402197263,1768588240026,-1881.06727141,0.00016167,2]
[402197264,1768588240035,-187.75,0.0001644,2]
[402197265,1768588240044,-187.75,0.0001644,2]
[402197266,1768588240053,-1881.06727141,0.00016484,2]
[402197267,1768588240062,-539.55244629,0.00016799,2]
[402197268,1768588240071,-472.29000426,0.00016799,2]
[402197269,1768588240081,-159.95264586,0.00016799,2]
[402197270,1768588240091,-1881.06727141,0.000168,2]
[402197271,1768588240100,-349.62316448,0.00016825,17]
[402197272,1768588240109,-315.0,0.00016838,2]
[402197273,1768588240119,-452131.66120018,0.00016887,2]
[402197274,1768588240140,-25386.68757505,0.00016887,2]
[402197308,1768588240573,-182235.92204226,0.00016887,2]
[402197309,1768588240584,-971.385,0.00016887,2]
[402197740,1768588246706,-1403.70363586,0.00016887,2]
[402197767,1768588665041,10000.0,0.0001,10]
[402197870,1768589420688,10000.0,8.93e-05,2]
[402197906,1768589432406,-174.52,0.00012329,2]
[402197908,1768589432416,-228.0327922,0.00012329,2]
[402197910,1768589432425,-367.0584844,0.00012544,2]
[402197912,1768589432436,-175.85730322,0.00013327,2]
[402197915,1768589432458,-22.21301865,0.00013327,2]
[402197917,1768589432468,-300.0,0.00013597,2]
[402197920,1768589432477,-168.40043247,0.00013597,2]
[402197944,1768589432867,5365.0,8.93e-05,2]
[402197964,1768589438565,-5643.20181423,0.000135,2]
[402197966,1768589438575,-444.59956753,0.00013597,2]
[402197968,1768589438584,-500.0,0.00013598,2]
[402197970,1768589438594,-500.0,0.00013598,2]
[402197971,1768589438603,-500.0,0.00013598,2]
[402197973,1768589438613,-330.9459275,0.00013598,2]
[402197975,1768589438622,-500.0,0.00013598,2]
[402197977,1768589438632,-500.0,0.00013598,2]
[402197979,1768589438641,-500.0,0.00013598,2]
[402197981,1768589438649,-500.0,0.00013598,2]
[402197983,1768589438659,-179.92636145,0.00013598,2]
[402197985,1768589438669,-500.0,0.00013598,2]
[402197987,1768589438678,-201.10771227,0.00013598,2]
[402197989,1768589438688,-500.0,0.00013598,2]
[402197991,1768589438697,-500.0,0.00013598,2]
[402197993,1768589438707,-195.22920735,0.00013598,2]
[402197995,1768589438716,-348.18247504,0.00013598,2]
[402197997,1768589438726,-472.29000426,0.00013598,2]
[402197999,1768589438736,-404491.4332378,0.00013599,2]
[402198046,1768589439187,-1033.99134666,0.00013599,2]
[402198048,1768589439199,-34624.40182136,0.00013599,2]
[402198050,1768589439210,-2341.91364091,0.00013599,2]
[402198339,1768589443546,-7242.7797071,0.00013599,2]
[402198340,1768589443598,-68435.07778361,0.00013599,2]
[402198773,1768590632510,-721.70839152,0.0001274,2]
[402198774,1768590632522,-1617.84554298,0.0001274,2]
[402198775,1768590632532,-600.0,0.0001274,2]
[402198776,1768590632542,-232.58301176,0.00013505,2]
[402198777,1768590632551,-151.0,0.000136,2]
[402198778,1768590632561,-1000.0,0.00013699,2]
[402198780,1768590632571,-250.0,0.00014317,2]
[402198781,1768590632580,-1200.0,0.00015296,2]
[402198782,1768590632589,-28669.33159362,0.00015297,2]
[402198783,1768590632601,-1330.86509089,0.00015297,2]
[402198813,1768590638725,-157.52,0.00013893,2]
[402198814,1768590638735,-180.02,0.0001471,2]
[402198815,1768590638745,-4060.60388316,0.00015297,2]
[402198816,1768590638757,-1124.40043577,0.00015297,2]
[402199273,1768590646413,-954.54261483,0.00015297,2]
[402199278,1768590647028,-1528.8548499,0.00015297,2]
[402199758,1768591831726,-240.28958876,9.998e-05,2]
[402199760,1768591831736,-300.0,9.998e-05,2]
[402199761,1768591831746,-300.0,9.998e-05,2]
[402199762,1768591831754,-300.0,9.998e-05,2]
[402199763,1768591831763,-560.0,9.998e-05,2]
[402199765,1768591831773,-1200.0,9.998e-05,2]
[402199767,1768591831782,-300.0,9.999e-05,2]
[402199769,1768591831791,-19664.36,0.0001,2]
[402199770,1768591831800,-173.524,0.00010998,2]
[402199772,1768591831810,-179.18,0.00010998,2]
[402199774,1768591831819,-420.0,0.00010998,2]
[402199775,1768591831828,-1680.0,0.00010998,2]
[402199776,1768591831837,-7748.75720731,0.00010999,2]
[402199777,1768591831847,-420.0,0.00010999,2]
[402199778,1768591831856,-283.54171474,0.00011998,2]
[402199779,1768591831866,-332.0,0.00012098,2]
[402199780,1768591831875,-299.34527796,0.00012408,2]
[402199781,1768591831885,-250.0,0.0001321,2]
[402199782,1768591831895,-2378.82235173,0.00013262,2]
[402199783,1768591831904,-326.79384071,0.00013998,2]
[402199784,1768591831913,-539.55244629,0.00015197,2]
[402199785,1768591831922,-151.0,0.000152,2]
[402199786,1768591831931,-488.44634769,0.000154,2]
[402199787,1768591831941,-239.60081714,0.000154,2]
[402199788,1768591831950,-272.58339122,0.000154,2]
[402199789,1768591831960,-163.12264807,0.000154,2]
[402199790,1768591831969,-194.46611921,0.000154,2]
[402199791,1768591831978,-162.81544922,0.000154,2]
[402199792,1768591831988,-317.17558216,0.000154,2]
[402199793,1768591831997,-158.58779108,0.000154,2]
[402199794,1768591832007,-190.16133954,0.000154,2]
[402199795,1768591832016,-171.62720754,0.000154,2]
[402199796,1768591832026,-240.35312053,0.000154,2]
[402199797,1768591832035,-156.12857079,0.000154,2]
[402199798,1768591832045,-173.14276958,0.000154,2]
[402199799,1768591832055,-370.04596669,0.00015998,2]
[402199800,1768591832065,-488.44634769,0.00016103,9]
[402199801,1768591832076,-1957.856,0.00016113,2]
[402199802,1768591832085,-162.380719,0.00016113,2]
[402199803,1768591832095,-250.0,0.00016113,2]
[402199804,1768591832104,-162.380719,0.00016113,2]
[402199805,1768591832114,-2150.738,0.00016113,2]
[402199806,1768591832124,-250.0,0.00016113,2]
[402199807,1768591832133,-168.3888056,0.00016113,2]
[402199808,1768591832143,-174.61919141,0.00016113,2]
[402199809,1768591832152,-181.08010149,0.00016113,2]
[402199810,1768591832160,-187.78006525,0.00016113,2]
[402199811,1768591832170,-194.72792766,0.00016113,2]
[402199812,1768591832178,-201.93286099,0.00016113,2]
[402199813,1768591832188,-250.0,0.00016113,2]
[402199814,1768591832197,-209.40437684,0.00016113,2]
[402199815,1768591832210,-250.0,0.00016113,2]
[402199816,1768591832219,-217.15233878,0.00016113,2]
[402199817,1768591832229,-250.0,0.00016113,2]
[402199818,1768591832238,-225.18697532,0.00016113,2]
[402199819,1768591832247,-250.0,0.00016113,2]
[402199820,1768591832256,-151.0,0.00016113,2]
[402199821,1768591832265,-233.51889341,0.00016113,2]
[402199822,1768591832274,-250.0,0.00016113,2]
[402199823,1768591832283,-151.0,0.00016113,2]
[402199824,1768591832292,-242.15909246,0.00016113,2]
[402199825,1768591832302,-250.0,0.00016113,2]
[402199826,1768591832311,-251.11897888,0.00016113,2]
[402199827,1768591832320,-250.0,0.00016113,2]
[402199828,1768591832329,-151.0,0.00016113,2]
[402199829,1768591832338,-260.4103811,0.00016113,2]
[402199830,1768591832348,-250.0,0.00016113,2]
[402199831,1768591832357,-151.0,0.00016113,2]
[402199832,1768591832366,-270.0455652,0.00016113,2]
[402199833,1768591832375,-222.18737856,0.00016113,2]
[402199834,1768591832385,-151.0,0.00016113,2]
[402199835,1768591832395,-280.03725112,0.00016113,2]
[402199836,1768591832405,-151.0,0.00016113,2]
[402199837,1768591832414,-290.39862941,0.00016113,2]
[402199838,1768591832423,-151.0,0.00016113,2]
[402199839,1768591832432,-301.1433787,0.00016113,2]
[402199840,1768591832441,-151.0,0.00016113,2]
[402199841,1768591832451,-151.0,0.00016113,2]
[402199842,1768591832460,-247.39667273,0.00016113,2]
[402199843,1768591832469,-151.0,0.00016113,2]
[402199844,1768591832478,-151.0,0.00016113,2]
[402199845,1768591832488,-151.0,0.00016113,2]
[402199846,1768591832497,-151.0,0.00016113,2]
[402199847,1768591832506,-151.0,0.00016113,2]
[402199848,1768591832515,-151.0,0.00016113,2]
[402199849,1768591832525,-250.0,0.00016113,2]
[402199850,1768591832534,-151.0,0.00016113,2]
[402199851,1768591832543,-250.0,0.00016113,2]
[402199852,1768591832552,-164.148966,0.00016113,2]
[402199853,1768591832562,-151.0,0.00016113,2]
[402199854,1768591832571,-151.0,0.00016113,2]
[402199855,1768591832581,-151.0,0.00016113,2]
[402199856,1768591832590,-151.0,0.00016113,2]
[402199857,1768591832603,-151.0,0.00016113,2]
[402199858,1768591832612,-151.0,0.00016113,2]
[402199859,1768591832621,-151.0,0.00016113,2]
[402199860,1768591832631,-151.0,0.00016113,2]
[402199861,1768591832641,-445.202766,0.00016113,2]
[402199862,1768591832650,-151.0,0.00016113,2]
[402199863,1768591832660,-151.0,0.00016113,2]
[402199864,1768591832670,-163.86,0.00016162,2]
[402199865,1768591832680,-2030.296672,0.00016168,2]
[402199866,1768591832689,-2105.41764886,0.00016223,2]
[402199867,1768591832699,-2183.31810187,0.00016278,2]
[402199868,1768591832709,-868.5027432,0.00016333,2]
[402199869,1768591832719,-4048.04604399,0.00016351,2]
[402199870,1768591832727,-1012.011511,0.00016351,2]
[402199871,1768591832737,-853.46151172,0.00016351,2]
[402199872,1768591832746,-3410.43220082,0.00016351,2]
[402199873,1768591832755,-190.16133954,0.00016513,17]
[402199874,1768591832764,-240.35312053,0.00016513,17]
[402199875,1768591832773,-2230.315306,0.00016661,2]
[402199876,1768591832782,-461.67526834,0.00016661,2]
[402199877,1768591832791,-189.66386895,0.00016722,2]
[402199878,1768591832801,-159.95264586,0.00016722,2]
[402199879,1768591832810,-194.46611921,0.00016805,17]
[402199880,1768591832819,-488.44634769,0.00016805,17]
[402199881,1768591832828,-171.62720754,0.00016959,23]
[402199882,1768591832837,-173.14276958,0.00016959,23]
[402199883,1768591832847,-31419.3228256,0.00017,2]
[402199897,1768591840061,-266.17415995,0.00017,2]
[402200431,1768591846245,-4207.77989484,0.00017,2]
[402201021,1768593031849,-163.34,0.00010068,2]
[402201024,1768593031858,-538.23687561,0.00010068,2]
[402201030,1768593031908,-22.76312439,0.00010068,2]
[402201032,1768593031918,-441.44126425,0.00010113,2]
[402201033,1768593031927,-228.59387337,0.00010149,2]
[402201034,1768593031937,-4454.50317109,0.00010443,2]
[402201035,1768593031949,-183.76,0.00010627,2]
[402201036,1768593031958,-1200.0,0.00010993,2]
[402201037,1768593031967,-300.0,0.00010994,2]
[402201038,1768593031976,-300.0,0.00010994,2]
[402201039,1768593031987,-300.0,0.00010994,2]
[402201040,1768593031996,-302.0,0.00011,2]
[402201041,1768593032005,-6988.09467399,0.00011,2]
[402201042,1768593032015,-204.17,0.00011187,2]
[402201043,1768593032024,-420.0,0.00012081,2]
[402201044,1768593032033,-1680.0,0.00012092,2]
[402201045,1768593032043,-269.74077058,0.00012149,2]
[402201046,1768593032052,-1000.0,0.00013699,2]
[402201047,1768593032060,-310.88766779,0.00014149,2]
[402201048,1768593032069,-500.0,0.00015296,2]
[402201049,1768593032078,-475.0,0.00015297,2]
[402201050,1768593032087,-475.0,0.00015297,2]
[402201051,1768593032096,-475.0,0.00015297,2]
[402201052,1768593032105,-475.0,0.00015297,2]
[402201053,1768593032114,-475.0,0.00015297,2]
[402201054,1768593032124,-1000.0,0.00015297,2]
[402201055,1768593032133,-175.432,0.00015297,2]
[402201056,1768593032143,-179.18,0.00015297,2]
[402201057,1768593032152,-377.68671241,0.00015909,2]
[402201058,1768593032161,-24313.26121663,0.0001591,2]
[402201059,1768593032173,-86982.24500402,0.0001591,2]
[402201060,1768593032184,-806.99127554,0.0001591,2]
[402201073,1768593038047,-376.90769601,0.00015909,2]
[402201128,1768593040243,-123.09230399,0.00015909,2]
[402201130,1768593040252,-420.2591042,0.00015909,2]
[402201389,1768593043104,-453.0,0.00015908,2]
[402201392,1768593043116,-640.0,0.00015908,2]
[402201394,1768593043127,-400.0,0.00015908,2]
[402201398,1768593043156,-2436.39434065,0.00015908,2]
[402201634,1768593046178,-1528.8548499,0.00015908,2]
[402201635,1768593046336,-1041.66666667,0.00015908,2]
[402201656,1768593603444,156.32,8.9e-05,2]
[402201877,1768594238048,-1022.66224611,0.00010362,2]
[402201878,1768594238058,-565.0,0.00010362,2]
[402201879,1768594238067,-233.48278168,0.00010415,2]
[402201880,1768594238076,-1104.11833521,0.00010467,2]
[402201881,1768594238085,-696.21842792,0.00010788,2]
[402201882,1768594238097,-700.33508408,0.00010788,2]
[402201883,1768594238106,-300.0,0.00011739,2]
[402201884,1768594238115,-300.0,0.00011739,2]
[402201885,1768594238124,-500.0,0.00011739,2]
[402201886,1768594238134,-500.0,0.00011739,2]
[402201887,1768594238143,-500.0,0.00011739,2]
[402201888,1768594238152,-500.0,0.00011739,2]
[402201889,1768594238161,-500.0,0.00011739,2]
[402201890,1768594238171,-500.0,0.00011739,2]
[402201891,1768594238180,-500.0,0.00011739,2]
[402201892,1768594238190,-500.0,0.00011739,2]
[402201893,1768594238199,-280.07028412,0.00011739,2]
[402201894,1768594238208,-517.69034717,0.00011739,2]
[402201895,1768594238217,-500.0,0.00011739,2]
[402201896,1768594238226,-500.0,0.00011739,2]
[402201897,1768594238235,-373.62581798,0.00011739,2]
[402201898,1768594238244,-500.0,0.00011739,2]
[402201899,1768594238253,-37941.38019535,0.0001174,2]
[402201900,1768594238263,-500.0,0.00011741,2]
[402201901,1768594238273,-500.0,0.00011741,2]
[402201902,1768594238283,-500.0,0.00011741,2]
[402201903,1768594238293,-500.0,0.00011741,2]
[402201904,1768594238305,-500.0,0.00011741,2]
[402201905,1768594238314,-213.78075765,0.00011796,2]
[402201906,1768594238324,-6581.3951744,0.00012223,2]
[402201907,1768594238334,-500.0,0.00012329,2]
[402201908,1768594238343,-500.0,0.00012329,2]
[402201909,1768594238353,-500.0,0.00012329,2]
[402201910,1768594238362,-500.0,0.00012329,2]
[402201911,1768594238373,-500.0,0.00012329,2]
[402201912,1768594238382,-500.0,0.00012329,2]
[402201913,1768594238391,-500.0,0.00012329,2]
[402201914,1768594238401,-500.0,0.00012329,2]
[402201915,1768594238410,-500.0,0.00012329,2]
[402201916,1768594238419,-500.0,0.00012329,2]
[402201917,1768594238429,-141.1156577,0.00012329,2]
[402201918,1768594238441,-294.682288,0.00012329,2]
[402201919,1768594238451,-500.0,0.00012329,2]
[402201920,1768594238460,-500.0,0.00012329,2]
[402201921,1768594238469,-500.0,0.00012329,2]
[402201922,1768594238479,-500.0,0.00012329,2]
[402201923,1768594238489,-47.23135291,0.00012329,2]
[402201924,1768594238500,-452.76864709,0.00012329,2]
[402201925,1768594238510,-500.0,0.00012329,2]
[402201926,1768594238519,-500.0,0.00012329,2]
[402201927,1768594238529,-500.0,0.00012329,2]
[402201928,1768594238538,-500.0,0.00012329,2]
[402201929,1768594238548,-275.50968238,0.00012415,2]
[402201930,1768594238557,-643.88420735,0.00013273,2]
[402201931,1768594238566,-500.0,0.00013273,2]
[402201932,1768594238575,-317.41450533,0.00014415,2]
[402201933,1768594238587,-0.12207776,0.00014415,2]
[402201934,1768594238596,-7000.0,0.00015,2]
[402201935,1768594238605,-175.433,0.00015801,2]
[402201936,1768594238615,-19292.2273969,0.00016094,2]
[402201937,1768594238625,-162.380719,0.00016094,2]
[402201938,1768594238634,-162.380719,0.00016094,2]
[402201939,1768594238644,-168.3888056,0.00016094,2]
[402201940,1768594238654,-174.61919141,0.00016094,2]
[402201941,1768594238663,-181.08010149,0.00016094,2]
[402201942,1768594238673,-187.78006525,0.00016094,2]
[402201943,1768594238683,-445.202766,0.00016094,2]
[402201944,1768594238693,-2150.738,0.00016094,2]
[402201945,1768594238703,-194.72792766,0.00016094,2]
[402201946,1768594238713,-201.93286099,0.00016094,2]
[402201947,1768594238722,-209.40437684,0.00016094,2]
[402201948,1768594238731,-217.15233878,0.00016094,2]
[402201949,1768594238741,-225.18697532,0.00016094,2]
[402201950,1768594238750,-233.51889341,0.00016094,2]
[402201951,1768594238759,-242.15909246,0.00016094,2]
[402201952,1768594238769,-251.11897888,0.00016094,2]
[402201953,1768594238778,-257.45624052,0.00016094,2]
[402201954,1768594238787,-359.56348379,0.00016415,2]
[402201955,1768594238797,-264.38069868,0.00016437,2]
[402201956,1768594238806,-434.65293173,0.00016437,2]
[402201957,1768594238815,-194.2841096,0.00016438,2]
[402201958,1768594238824,-42.38938641,0.00016438,2]
[402201959,1768594238858,-262.59756679,0.00016438,2]
[402201960,1768594238868,-651.4432288,0.00016438,2]
[402201961,1768594238879,-304.9869532,0.00016438,2]
[402201962,1768594238889,-194.2841096,0.00016438,2]
[402201963,1768594238899,-304.9869532,0.00016438,2]
[402201964,1768594238909,-194.2841096,0.00016438,2]
[402201965,1768594238919,-187.1965383,0.00016438,2]
[402201966,1768594238929,-304.9869532,0.00016438,2]
[402201967,1768594238939,-304.9869532,0.00016438,2]
[402201968,1768594238949,-359.12232357,0.00016438,2]
[402201993,1768594240369,-109.82442803,0.00016438,2]
[402201995,1768594240379,-1363.37031586,0.000165,2]
[402201997,1768594240393,-1326.66510949,0.000165,2]
[402202337,1768594244664,-187.75,0.0001644,2]
[402202338,1768594244684,-1316.6002,0.000165,2]
[402202339,1768594244699,-436.73908453,0.000165,2]
[402202340,1768594244712,-414.32248862,0.000165,2]
[402202341,1768594244728,-507.18263948,0.000165,2]
[402202342,1768594244740,-5228.12016202,0.000165,2]
[402202343,1768594244750,-461.67526834,0.00016642,2]
[402202344,1768594244761,-2230.315306,0.00016642,2]
[402202345,1768594244771,-151.0,0.000169,2]
[402202346,1768594244782,-2435.81756095,0.00017,2]
[402202347,1768594244794,-2921.17,0.00017,2]
[402202348,1768594244806,-14184.76249413,0.00017,2]
[402202349,1768594244818,-21314.38983847,0.00017,2]
[402202350,1768594244830,-2439.32849533,0.00017,2]
[402202352,1768594246509,-3937.49442221,0.00017,2]
[402202353,1768594246520,-187.75,0.00017,2]
[402202354,1768594246530,-58763.2804087,0.0001701,3]
[402202355,1768594246564,-1528.85844466,0.0001701,3]
[402202384,1768594803827,156.06,8.9e-05,2]
[402202386,1768594804155,156.06,8.9e-05,2]
[402202467,1768595432190,-524.66381253,0.0001,2]
[402202469,1768595432200,-448.33618747,0.0001,2]
[402202473,1768595432264,-111.66381253,0.0001,2]
[402202475,1768595432274,-311.56291462,0.00010055,2]
[402202477,1768595432283,-65.77327285,0.000125,2]
[402202479,1768595432294,-3320.76644445,0.000125,2]
[402202500,1768595438478,-136.0271252,0.000125,2]
[402202501,1768595438488,-500.0,0.00013273,2]
[402202502,1768595438497,-217.7173133,0.00014526,2]
[402202503,1768595438506,-578.88397054,0.00015,2]
[402203026,1768595446752,-661.11602946,0.00015,2]
[402203027,1768595446763,-235.11736789,0.00015588,2]
[402203028,1768595446772,-209.644129,0.00016175,2]
[402203029,1768595446782,-351.72247365,0.0001665,2]
[402203127,1768596612775,-392.35993336,9.218e-05,2]
[402203128,1768596614938,-163.04901972,9.218e-05,2]
[402203129,1768596616456,-296.61904294,9.218e-05,2]
[402203147,1768596632402,-170.63425009,9.218e-05,2]
[402203148,1768596632411,-454.72756584,9.311e-05,2]
[402203149,1768596632422,-649.39076937,9.311e-05,2]
[402203150,1768596632431,-550.0,9.311e-05,2]
[402203151,1768596632440,-243.12200457,9.618e-05,2]
[402203152,1768596632448,-696.218428,9.641e-05,2]
[402203153,1768596632458,-1200.0,0.00010192,2]
[402203154,1768596632467,-5139.0,0.00010193,10]
[402203155,1768596632476,-700.0,0.000104,2]
[402203156,1768596632485,-300.0,0.00010454,2]
[402203157,1768596632494,-2383.38189356,0.00010455,2]
[402203158,1768596632503,-1200.0,0.00011211,2]
[402203159,1768596632512,-335.29892746,0.00011437,2]
[402203160,1768596632521,-263.736202,0.00011437,2]
[402203161,1768596632529,-6881.6454737,0.00011438,2]
[402203162,1768596632547,-508.75859215,0.00011438,2]
[402203163,1768596632557,-476.52,0.00011438,2]
[402203164,1768596632568,-33173.30187022,0.00011438,2]
[402203165,1768596632576,-420.0,0.00011494,2]
[402203166,1768596632585,-286.8839654,0.00011618,2]
[402203167,1768596632594,-500.0,0.00012329,2]
[402203168,1768596632603,-500.0,0.00012329,2]
[402203169,1768596632612,-500.0,0.00012329,2]
[402203170,1768596632621,-500.0,0.00012329,2]
[402203171,1768596632630,-71.11896478,0.00012329,2]
[402203272,1768596638465,-428.88103522,0.00012329,2]
[402203273,1768596638474,-648.01078018,0.00012329,2]
[402203274,1768596638483,-500.0,0.00012329,2]
[402203275,1768596638493,-500.0,0.00012329,2]
[402203276,1768596638502,-500.0,0.00012329,2]
[402203277,1768596638511,-500.0,0.00012329,2]
[402203278,1768596638521,-500.0,0.00012329,2]
[402203279,1768596638530,-151.88,0.00012329,2]
[402203280,1768596638539,-180.0,0.00012638,2]
[402203281,1768596638548,-236.19314565,0.00012748,2]
[402203282,1768596638557,-6347.43999546,0.000129,2]
[402203283,1768596638566,-643.88420735,0.00013273,2]
[402203284,1768596638575,-6347.43999544,0.0001342,2]
[402203285,1768596638584,-330.64592622,0.00013618,2]
[402203286,1768596638593,-1000.0,0.00013699,2]
[402203287,1768596638602,-5000.0,0.00015,2]
[402203288,1768596638612,-6347.43999544,0.00015322,2]